fUST/lending_fUST_20250811
["ID","MTS","AMOUNT","RATE_DAILY","PERIOD"]
[378597774,1754921454678,-417.15472785,0.00019555,2]
[378597775,1754921454688,-216.68257536,0.00019555,2]
[378597776,1754921454698,-151.0,0.000196,2]
[378597777,1754921454708,-151.0,0.000196,2]
[378597778,1754921454719,-1000.0,0.00019621,2]
[378597779,1754921454729,-1000.0,0.00019621,2]
[378597780,1754921454739,-1000.0,0.00019621,2]
[378597781,1754921454750,-500.0,0.00019621,2]
[378597782,1754921454761,-1000.0,0.00019621,2]
[378597783,1754921454770,-1000.0,0.00019621,2]
[378597784,1754921454779,-1000.0,0.00019621,2]
[378597785,1754921454789,-1000.0,0.00019621,2]
[378597786,1754921454799,-1000.0,0.00019621,2]
[378597787,1754921454807,-658.3190125,0.00019621,2]
[378597788,1754921454817,-1000.0,0.00019621,2]
[378597789,1754921454827,-514.81854937,0.00019621,2]
[378597790,1754921454836,-612.5168597,0.00019621,2]
[378597791,1754921454846,-500.0,0.00019621,2]
[378597792,1754921454856,-1000.0,0.00019621,2]
[378597793,1754921454867,-1000.0,0.00019621,2]
[378597795,1754921454877,-500.0,0.00019625,2]
[378597796,1754921454887,-7292.95870878,0.00019626,2]
[378597797,1754921454898,-3282.0,0.00019635,2]
[378597798,1754921454908,-151.0,0.000197,2]
[378597799,1754921454918,-151.0,0.000197,2]
[378597800,1754921454928,-383.94955945,0.00019721,2]
[378597801,1754921454940,-1000.0,0.00019721,2]
[378597802,1754921454950,-1000.0,0.00019721,2]
[378597803,1754921454960,-1000.0,0.00019721,2]
[378597804,1754921454970,-1000.0,0.00019721,2]
[378597805,1754921454980,-1000.0,0.00019721,2]
[378597806,1754921454990,-1000.0,0.00019721,2]
[378597807,1754921455002,-1000.0,0.00019721,2]
[378597808,1754921455014,-1000.0,0.00019721,2]
[378597809,1754921455024,-1000.0,0.00019721,2]
[378597810,1754921455034,-500.0,0.00019721,2]
[378597811,1754921455045,-1000.0,0.00019721,2]
[378597812,1754921455056,-613.81959935,0.00019721,2]
[378597813,1754921455066,-1000.0,0.00019721,2]
[378597814,1754921455078,-1000.0,0.00019721,2]
[378597815,1754921455088,-1000.0,0.00019721,2]
[378597816,1754921455098,-1000.0,0.00019721,2]
[378597817,1754921455108,-603.34314445,0.00019721,2]
[378597818,1754921455119,-1000.0,0.00019721,2]
[378597819,1754921455128,-1000.0,0.00019721,2]
[378597820,1754921455138,-1000.0,0.00019721,2]
[378597821,1754921455149,-1000.0,0.00019721,2]
[378597822,1754921455159,-500.0,0.00019721,2]
[378597823,1754921455168,-1000.0,0.00019721,2]
[378597824,1754921455178,-500.0,0.00019721,2]
[378597825,1754921455188,-220.72400512,0.00019721,2]
[378597826,1754921455198,-500.0,0.00019721,2]
[378597827,1754921455208,-1005.25769152,0.00019721,2]
[378597828,1754921455218,-500.0,0.00019721,2]
[378597829,1754921455228,-1000.0,0.00019721,2]
[378597830,1754921455238,-1000.0,0.00019721,2]
[378597831,1754921455248,-1000.0,0.00019721,2]
[378597832,1754921455258,-507.53751155,0.00019721,2]
[378597833,1754921455268,-1000.0,0.00019721,2]
[378597834,1754921455278,-500.0,0.00019721,2]
[378597835,1754921455287,-1000.0,0.00019721,2]
[378597836,1754921455297,-1000.0,0.00019721,2]
[378597837,1754921455307,-650.2418856,0.00019721,2]
[378597838,1754921455317,-1000.0,0.00019721,2]
[378597839,1754921455326,-1000.0,0.00019721,2]
[378597840,1754921455336,-526.8803739,0.00019721,2]
[378597842,1754921455346,-1000.0,0.00019721,2]
[378597843,1754921455356,-989.56413626,0.00019721,2]
[378597844,1754921455367,-1000.0,0.00019721,2]
[378597846,1754921455377,-1000.0,0.00019721,2]
[378597847,1754921455387,-1071.10111159,0.00019721,2]
[378597849,1754921455397,-500.0,0.00019724,2]
[378597850,1754921455408,-500.0,0.00019724,2]
[378597851,1754921455418,-151.0,0.00019724,2]
[378597852,1754921455428,-151.0,0.00019724,2]
[378597853,1754921455438,-154.13560178,0.00019726,2]
[378597854,1754921455449,-151.0,0.00019726,2]
[378597855,1754921455460,-500.0,0.00019726,2]
[378597856,1754921455688,-151.0,0.00019726,2]
[378597857,1754921455707,-500.0,0.00019726,2]
[378597858,1754921455719,-500.0,0.00019726,2]
[378597859,1754921455728,-151.0,0.00019726,2]
[378597860,1754921455738,-152.0364052,0.00019726,2]
[378597861,1754921455749,-151.0,0.00019726,2]
[378597862,1754921455759,-500.0,0.00019726,2]
[378597863,1754921455769,-199.73992829,0.00019726,2]
[378597864,1754921455780,-500.0,0.00019726,2]
[378597865,1754921455791,-500.0,0.00019726,2]
[378597866,1754921455800,-198.0,0.00019726,2]
[378597867,1754921455809,-154.51495508,0.00019726,2]
[378597868,1754921455819,-749.415656,0.00019726,2]
[378597869,1754921455828,-749.415656,0.00019726,2]
[378597870,1754921455838,-151.0,0.00019726,2]
[378597871,1754921455847,-151.0,0.00019726,2]
[378597872,1754921455857,-460.0,0.00019726,2]
[378597873,1754921455867,-341.600839,0.00019726,2]
[378597874,1754921455877,-341.600839,0.00019726,2]
[378597875,1754921455887,-151.210671,0.00019726,2]
[378597876,1754921455897,-460.0,0.00019726,2]
[378597877,1754921455907,-460.0,0.00019726,2]
[378597878,1754921455916,-460.0,0.00019726,2]
[378597879,1754921455926,-460.0,0.00019726,2]
[378597880,1754921455935,-460.0,0.00019726,2]
[378597881,1754921455945,-460.0,0.00019726,2]
[378597882,1754921455955,-460.0,0.00019726,2]
[378597883,1754921455965,-460.0,0.00019726,2]
[378597884,1754921455974,-460.0,0.00019726,2]
[378597885,1754921455984,-221.76112064,0.00019726,2]
[378597886,1754921455993,-185.87663612,0.00019726,2]
[378597887,1754921456008,-460.0,0.00019726,2]
[378597888,1754921456018,-460.0,0.00019726,2]
[378597889,1754921456027,-460.0,0.00019726,2]
[378597890,1754921456036,-460.0,0.00019726,2]
[378597891,1754921456047,-460.0,0.00019726,2]
[378597892,1754921456056,-1134.52,0.00019726,2]
[378597893,1754921456066,-460.0,0.00019726,2]
[378597894,1754921456078,-460.0,0.00019726,2]
[378597895,1754921456087,-460.0,0.00019726,2]
[378597896,1754921456097,-460.0,0.00019726,2]
[378597897,1754921456107,-460.0,0.00019726,2]
[378597898,1754921456117,-343.65240613,0.00019726,2]
[378597899,1754921456127,-460.0,0.00019726,2]
[378597900,1754921456137,-460.0,0.00019726,2]
[378597901,1754921456146,-606.11,0.00019726,2]
[378597902,1754921456156,-688.47,0.00019726,2]
[378597903,1754921456166,-907.5,0.00019726,2]
[378597904,1754921456175,-460.0,0.00019726,2]
[378597905,1754921456185,-636.44,0.00019726,2]
[378597906,1754921456196,-471.41390067,0.00019726,2]
[378597907,1754921456206,-611.73,0.00019726,2]
[378597908,1754921456215,-460.0,0.00019726,2]
[378597909,1754921456225,-514.22,0.00019726,2]
[378597910,1754921456235,-460.0,0.00019726,2]
[378597911,1754921456244,-1000.0,0.00019726,2]
[378597912,1754921456252,-460.0,0.00019726,2]
[378597913,1754921456261,-460.0,0.00019726,2]
[378597914,1754921456270,-460.0,0.00019726,2]
[378597915,1754921456279,-460.0,0.00019726,2]
[378597916,1754921456288,-460.0,0.00019726,2]
[378597917,1754921456298,-460.0,0.00019726,2]
[378597918,1754921456307,-460.0,0.00019726,2]
[378597919,1754921456317,-460.0,0.00019726,2]
[378597920,1754921456326,-581.2765512,0.00019726,2]
[378597921,1754921456335,-460.0,0.00019726,2]
[378597922,1754921456345,-460.0,0.00019726,2]
[378597923,1754921456354,-460.0,0.00019726,2]
[378597924,1754921456363,-460.0,0.00019726,2]
[378597925,1754921456373,-460.0,0.00019726,2]
[378597926,1754921456382,-460.0,0.00019726,2]
[378597927,1754921456391,-460.0,0.00019726,2]
[378597928,1754921456401,-460.0,0.00019726,2]
[378597929,1754921456410,-470.12,0.00019726,2]
[378597930,1754921456419,-460.0,0.00019726,2]
[378597931,1754921456429,-395.44448093,0.00019726,2]
[378597932,1754921456438,-460.0,0.00019726,2]
[378597933,1754921456449,-864.34,0.00019726,2]
[378597934,1754921456460,-460.0,0.00019726,2]
[378597935,1754921456469,-460.0,0.00019726,2]
[378597936,1754921456478,-460.0,0.00019726,2]
[378597937,1754921456488,-460.0,0.00019726,2]
[378597938,1754921456498,-460.0,0.00019726,2]
[378597939,1754921456513,-492.43620659,0.00019726,2]
[378597940,1754921456522,-671.36,0.00019726,2]
[378597941,1754921456532,-460.0,0.00019726,2]
[378597942,1754921456541,-623.81,0.00019726,2]
[378597943,1754921456550,-662.38,0.00019726,2]
[378597944,1754921456560,-608.84,0.00019726,2]
[378597945,1754921456569,-460.0,0.00019726,2]
[378597946,1754921456579,-460.0,0.00019726,2]
[378597947,1754921456588,-536.78,0.00019726,2]
[378597948,1754921456598,-460.0,0.00019726,2]
[378597949,1754921456607,-702.41,0.00019726,2]
[378597950,1754921456617,-460.0,0.00019726,2]
[378597951,1754921456627,-460.0,0.00019726,2]
[378597952,1754921456636,-460.0,0.00019726,2]
[378597953,1754921456646,-460.0,0.00019726,2]
[378597954,1754921456655,-460.0,0.00019726,2]
[378597955,1754921456665,-460.0,0.00019726,2]
[378597956,1754921456675,-460.0,0.00019726,2]
[378597957,1754921456684,-460.0,0.00019726,2]
[378597958,1754921456695,-460.0,0.00019726,2]
[378597959,1754921456704,-803.77,0.00019726,2]
[378597960,1754921456714,-396.68883519,0.00019726,2]
[378597961,1754921456724,-460.0,0.00019726,2]
[378597962,1754921456733,-460.0,0.00019726,2]
[378597963,1754921456743,-460.0,0.00019726,2]
[378597964,1754921456753,-460.0,0.00019726,2]
[378597965,1754921456762,-758.29,0.00019726,2]
[378597966,1754921456772,-460.0,0.00019726,2]
[378597967,1754921456781,-460.0,0.00019726,2]
[378597968,1754921456791,-460.0,0.00019726,2]
[378597969,1754921456800,-460.0,0.00019726,2]
[378597970,1754921456809,-460.0,0.00019726,2]
[378597971,1754921456819,-704.57,0.00019726,2]
[378597972,1754921456828,-460.0,0.00019726,2]
[378597973,1754921456838,-460.0,0.00019726,2]
[378597974,1754921456847,-460.0,0.00019726,2]
[378597975,1754921456858,-852.99,0.00019726,2]
[378597976,1754921456867,-1213.37,0.00019726,2]
[378597977,1754921456877,-460.0,0.00019726,2]
[378597978,1754921456887,-460.0,0.00019726,2]
[378597979,1754921456897,-460.0,0.00019726,2]
[378597980,1754921456906,-460.0,0.00019726,2]
[378597981,1754921456916,-460.0,0.00019726,2]
[378597982,1754921456927,-460.0,0.00019726,2]
[378597983,1754921456937,-262.48677597,0.00019726,2]
[378597984,1754921456947,-460.0,0.00019726,2]
[378597985,1754921456957,-460.0,0.00019726,2]
[378597986,1754921456967,-460.0,0.00019726,2]
[378597987,1754921456980,-460.0,0.00019726,2]
[378597988,1754921456990,-686.31,0.00019726,2]
[378597989,1754921456999,-460.0,0.00019726,2]
[378597990,1754921457014,-460.0,0.00019726,2]
[378597991,1754921457023,-460.0,0.00019726,2]
[378597992,1754921457032,-604.93,0.00019726,2]
[378597993,1754921457042,-460.0,0.00019726,2]
[378597994,1754921457053,-525.14,0.00019726,2]
[378597995,1754921457062,-1445.06,0.00019726,2]
[378597996,1754921457072,-460.0,0.00019726,2]
[378597997,1754921457082,-460.0,0.00019726,2]
[378597998,1754921457091,-460.0,0.00019726,2]
[378597999,1754921457101,-460.0,0.00019726,2]
[378598000,1754921457111,-460.0,0.00019726,2]
[378598001,1754921457120,-715.59,0.00019726,2]
[378598002,1754921457130,-602.08,0.00019726,2]
[378598003,1754921457139,-509.99994878,0.00019726,2]
[378598004,1754921457149,-460.0,0.00019726,2]
[378598005,1754921457159,-460.0,0.00019726,2]
[378598006,1754921457168,-460.0,0.00019726,2]
[378598007,1754921457178,-460.0,0.00019726,2]
[378598008,1754921457187,-460.0,0.00019726,2]
[378598009,1754921457200,-501.54918664,0.00019726,2]
[378598010,1754921457209,-460.0,0.00019726,2]
[378598011,1754921457219,-460.0,0.00019726,2]
[378598012,1754921457228,-1000.0,0.00019726,2]
[378598013,1754921457238,-460.0,0.00019726,2]
[378598014,1754921457247,-460.0,0.00019726,2]
[378598015,1754921457256,-569.52717049,0.00019726,2]
[378598016,1754921457266,-460.0,0.00019726,2]
[378598017,1754921457275,-755.29,0.00019726,2]
[378598018,1754921457285,-460.0,0.00019726,2]
[378598019,1754921457294,-460.0,0.00019726,2]
[378598020,1754921457303,-477.508044,0.00019726,2]
[378598021,1754921457313,-701.14,0.00019726,2]
[378598022,1754921457322,-460.0,0.00019726,2]
[378598023,1754921457331,-460.0,0.00019726,2]
[378598024,1754921457341,-460.0,0.00019726,2]
[378598025,1754921457350,-460.0,0.00019726,2]
[378598026,1754921457360,-460.0,0.00019726,2]
[378598027,1754921457370,-461.68189417,0.00019726,2]
[378598028,1754921457379,-460.0,0.00019726,2]
[378598029,1754921457388,-460.0,0.00019726,2]
[378598030,1754921457397,-460.0,0.00019726,2]
[378598031,1754921457406,-436.50300604,0.00019726,2]
[378598032,1754921457415,-460.0,0.00019726,2]
[378598033,1754921457425,-460.0,0.00019726,2]
[378598034,1754921457434,-460.0,0.00019726,2]
[378598035,1754921457445,-460.0,0.00019726,2]
[378598036,1754921457454,-460.0,0.00019726,2]
[378598037,1754921457464,-460.0,0.00019726,2]
[378598038,1754921457473,-460.0,0.00019726,2]
[378598039,1754921457482,-460.0,0.00019726,2]
[378598040,1754921457493,-460.0,0.00019726,2]
[378598041,1754921457503,-461.48970758,0.00019726,2]
[378598042,1754921457512,-460.0,0.00019726,2]
[378598043,1754921457522,-460.0,0.00019726,2]
[378598044,1754921457532,-1066.29,0.00019726,2]
[378598045,1754921457541,-460.0,0.00019726,2]
[378598046,1754921457551,-460.0,0.00019726,2]
[378598047,1754921457560,-460.0,0.00019726,2]
[378598048,1754921457570,-460.0,0.00019726,2]
[378598049,1754921457580,-555.14,0.00019726,2]
[378598050,1754921457589,-460.86815289,0.00019726,2]
[378598051,1754921457598,-460.0,0.00019726,2]
[378598052,1754921457607,-828.12,0.00019726,2]
[378598053,1754921457617,-460.0,0.00019726,2]
[378598054,1754921457626,-500.0,0.00019726,2]
[378598055,1754921457635,-460.0,0.00019726,2]
[378598056,1754921457644,-460.61577241,0.00019726,2]
[378598057,1754921457653,-163.0063287,0.00019726,2]
[378598058,1754921457662,-460.0,0.00019726,2]
[378598059,1754921457672,-460.0,0.00019726,2]
[378598060,1754921457682,-247.86691074,0.00019726,2]
[378598061,1754921457693,-460.0,0.00019726,2]
[378598062,1754921457702,-460.0,0.00019726,2]
[378598063,1754921457711,-460.0,0.00019726,2]
[378598064,1754921457720,-720.83,0.00019726,2]
[378598065,1754921457729,-308.41744203,0.00019726,2]
[378598066,1754921457738,-460.0,0.00019726,2]
[378598067,1754921457748,-460.0,0.00019726,2]
[378598068,1754921457757,-596.36,0.00019726,2]
[378598069,1754921457766,-460.0,0.00019726,2]
[378598070,1754921457776,-1472.89,0.00019726,2]
[378598071,1754921457785,-460.0,0.00019726,2]
[378598072,1754921457794,-479.88,0.00019726,2]
[378598073,1754921457803,-460.0,0.00019726,2]
[378598074,1754921457812,-2508.11,0.00019726,2]
[378598075,1754921457822,-460.0,0.00019726,2]
[378598076,1754921457832,-460.0,0.00019726,2]
[378598077,1754921457841,-460.0,0.00019726,2]
[378598078,1754921457851,-460.0,0.00019726,2]
[378598079,1754921457860,-460.0,0.00019726,2]
[378598080,1754921457869,-460.0,0.00019726,2]
[378598081,1754921457878,-570.32,0.00019726,2]
[378598082,1754921457888,-460.0,0.00019726,2]
[378598083,1754921457897,-460.0,0.00019726,2]
[378598084,1754921457906,-460.0,0.00019726,2]
[378598085,1754921457915,-537.27,0.00019726,2]
[378598086,1754921457925,-659.94,0.00019726,2]
[378598087,1754921457934,-2203.38,0.00019726,2]
[378598088,1754921457945,-460.0,0.00019726,2]
[378598089,1754921457954,-460.0,0.00019726,2]
[378598090,1754921457963,-460.0,0.00019726,2]
[378598091,1754921458022,-460.0,0.00019726,2]
[378598092,1754921458032,-485.52889551,0.00019726,2]
[378598093,1754921458041,-460.0,0.00019726,2]
[378598094,1754921458053,-490.96594389,0.00019726,2]
[378598095,1754921458062,-460.0,0.00019726,2]
[378598096,1754921458071,-1941.12,0.00019726,2]
[378598097,1754921458083,-460.0,0.00019726,2]
[378598098,1754921458093,-1275.63,0.00019726,2]
[378598099,1754921458103,-708.54,0.00019726,2]
[378598100,1754921458113,-460.0,0.00019726,2]
[378598101,1754921458123,-618.94,0.00019726,2]
[378598102,1754921458133,-546.04,0.00019726,2]
[378598103,1754921458142,-460.0,0.00019726,2]
[378598104,1754921458151,-616.33,0.00019726,2]
[378598105,1754921458161,-493.08677408,0.00019726,2]
[378598106,1754921458170,-460.0,0.00019726,2]
[378598107,1754921458179,-460.0,0.00019726,2]
[378598108,1754921458188,-460.0,0.00019726,2]
[378598109,1754921458199,-460.0,0.00019726,2]
[378598110,1754921458209,-2014.17,0.00019726,2]
[378598111,1754921458218,-460.0,0.00019726,2]
[378598112,1754921458227,-460.0,0.00019726,2]
[378598113,1754921458236,-1612.74,0.00019726,2]
[378598114,1754921458245,-361.08311554,0.00019726,2]
[378598115,1754921458255,-281.13136386,0.00019726,2]
[378598116,1754921458264,-460.0,0.00019726,2]
[378598117,1754921458273,-460.0,0.00019726,2]
[378598118,1754921458283,-400.0,0.00019726,2]
[378598119,1754921458292,-798.42,0.00019726,2]
[378598120,1754921458302,-460.0,0.00019726,2]
[378598121,1754921458311,-460.0,0.00019726,2]
[378598122,1754921458320,-460.0,0.00019726,2]
[378598123,1754921458330,-1391.19,0.00019726,2]
[378598124,1754921458339,-605.66,0.00019726,2]
[378598125,1754921458348,-460.0,0.00019726,2]
[378598126,1754921458357,-460.0,0.00019726,2]
[378598127,1754921458366,-460.0,0.00019726,2]
[378598128,1754921458375,-460.0,0.00019726,2]
[378598129,1754921458388,-460.0,0.00019726,2]
[378598130,1754921458397,-460.0,0.00019726,2]
[378598131,1754921458407,-460.0,0.00019726,2]
[378598132,1754921458416,-873.33,0.00019726,2]
[378598133,1754921458426,-460.0,0.00019726,2]
[378598134,1754921458435,-460.0,0.00019726,2]
[378598135,1754921458445,-888.28,0.00019726,2]
[378598136,1754921458453,-204.753215,0.00019726,2]
[378598137,1754921458463,-460.0,0.00019726,2]
[378598138,1754921458472,-460.0,0.00019726,2]
[378598139,1754921458481,-460.0,0.00019726,2]
[378598140,1754921458490,-467.5314501,0.00019726,2]
[378598141,1754921458500,-460.0,0.00019726,2]
[378598142,1754921458509,-183.79375977,0.00019726,2]
[378598143,1754921458518,-11368.06,0.00019726,2]
[378598144,1754921458526,-460.0,0.00019726,2]
[378598145,1754921458534,-460.0,0.00019726,2]
[378598146,1754921458542,-460.0,0.00019726,2]
[378598147,1754921458551,-460.0,0.00019726,2]
[378598148,1754921458560,-1206.91,0.00019726,2]
[378598149,1754921458568,-460.0,0.00019726,2]
[378598150,1754921458577,-298.73074238,0.00019726,2]
[378598151,1754921458586,-460.0,0.00019726,2]
[378598152,1754921458596,-460.0,0.00019726,2]
[378598153,1754921458605,-782.54,0.00019726,2]
[378598154,1754921458614,-1103.38,0.00019726,2]
[378598155,1754921458623,-460.0,0.00019726,2]
[378598156,1754921458632,-460.0,0.00019726,2]
[378598157,1754921458641,-1943.89,0.00019726,2]
[378598158,1754921458651,-460.0,0.00019726,2]
[378598159,1754921458660,-866.15,0.00019726,2]
[378598160,1754921458670,-460.0,0.00019726,2]
[378598161,1754921458678,-853.53,0.00019726,2]
[378598162,1754921458688,-460.0,0.00019726,2]
[378598163,1754921458699,-460.0,0.00019726,2]
[378598164,1754921458708,-460.0,0.00019726,2]
[378598165,1754921458717,-1016.59,0.00019726,2]
[378598166,1754921458727,-939.94,0.00019726,2]
[378598167,1754921458736,-460.0,0.00019726,2]
[378598168,1754921458745,-460.0,0.00019726,2]
[378598169,1754921458755,-460.0,0.00019726,2]
[378598170,1754921458764,-463.15122904,0.00019726,2]
[378598171,1754921458774,-460.0,0.00019726,2]
[378598172,1754921458783,-460.0,0.00019726,2]
[378598173,1754921458792,-460.0,0.00019726,2]
[378598174,1754921458801,-460.0,0.00019726,2]
[378598175,1754921458811,-460.0,0.00019726,2]
[378598176,1754921458820,-3653.51,0.00019726,2]
[378598177,1754921458829,-460.0,0.00019726,2]
[378598178,1754921458838,-460.0,0.00019726,2]
[378598179,1754921458848,-4588.46,0.00019726,2]
[378598180,1754921458857,-460.0,0.00019726,2]
[378598181,1754921458867,-460.0,0.00019726,2]
[378598182,1754921458877,-589.46,0.00019726,2]
[378598183,1754921458886,-983.52,0.00019726,2]
[378598184,1754921458895,-2800.95,0.00019726,2]
[378598185,1754921458904,-460.0,0.00019726,2]
[378598186,1754921458914,-877.3,0.00019726,2]
[378598187,1754921458923,-460.0,0.00019726,2]
[378598188,1754921458932,-460.0,0.00019726,2]
[378598189,1754921458942,-3380.51,0.00019726,2]
[378598190,1754921458952,-460.0,0.00019726,2]
[378598191,1754921458960,-460.0,0.00019726,2]
[378598192,1754921458971,-460.0,0.00019726,2]
[378598193,1754921458979,-460.0,0.00019726,2]
[378598194,1754921458988,-460.0,0.00019726,2]
[378598195,1754921458997,-1442.1,0.00019726,2]
[378598196,1754921459008,-460.0,0.00019726,2]
[378598197,1754921459018,-460.0,0.00019726,2]
[378598198,1754921459026,-484.16582763,0.00019726,2]
[378598199,1754921459036,-460.0,0.00019726,2]
[378598200,1754921459050,-460.0,0.00019726,2]
[378598201,1754921459059,-460.0,0.00019726,2]
[378598202,1754921459068,-1919.5,0.00019726,2]
[378598203,1754921459078,-460.0,0.00019726,2]
[378598204,1754921459089,-460.0,0.00019726,2]
[378598205,1754921459099,-460.0,0.00019726,2]
[378598206,1754921459111,-768.29,0.00019726,2]
[378598207,1754921459120,-460.0,0.00019726,2]
[378598208,1754921459129,-2173.25,0.00019726,2]
[378598209,1754921459139,-1246.41,0.00019726,2]
[378598210,1754921459148,-4343.12,0.00019726,2]
[378598211,1754921459158,-460.0,0.00019726,2]
[378598212,1754921459167,-460.0,0.00019726,2]
[378598213,1754921459176,-460.0,0.00019726,2]
[378598214,1754921459186,-2802.01,0.00019726,2]
[378598215,1754921459196,-1921.72,0.00019726,2]
[378598216,1754921459205,-460.0,0.00019726,2]
[378598217,1754921459215,-460.0,0.00019726,2]
[378598218,1754921459223,-460.0,0.00019726,2]
[378598219,1754921459232,-1195.07,0.00019726,2]
[378598220,1754921459240,-460.0,0.00019726,2]
[378598221,1754921459247,-460.0,0.00019726,2]
[378598222,1754921459256,-460.0,0.00019726,2]
[378598223,1754921459265,-460.0,0.00019726,2]
[378598224,1754921459274,-460.0,0.00019726,2]
[378598225,1754921459283,-461.92465951,0.00019726,2]
[378598226,1754921459293,-460.0,0.00019726,2]
[378598227,1754921459302,-583.08,0.00019726,2]
[378598228,1754921459311,-460.0,0.00019726,2]
[378598229,1754921459321,-460.0,0.00019726,2]
[378598230,1754921459330,-460.0,0.00019726,2]
[378598231,1754921459339,-460.0,0.00019726,2]
[378598232,1754921459349,-487.34,0.00019726,2]
[378598233,1754921459358,-460.0,0.00019726,2]
[378598234,1754921459368,-460.0,0.00019726,2]
[378598235,1754921459378,-1664.59,0.00019726,2]
[378598236,1754921459387,-554.38,0.00019726,2]
[378598237,1754921459401,-460.0,0.00019726,2]
[378598238,1754921459413,-1232.1,0.00019726,2]
[378598239,1754921459422,-731.14,0.00019726,2]
[378598240,1754921459432,-460.0,0.00019726,2]
[378598241,1754921459442,-460.0,0.00019726,2]
[378598242,1754921459451,-286.84872159,0.00019726,2]
[378598243,1754921459461,-460.0,0.00019726,2]
[378598244,1754921459470,-460.0,0.00019726,2]
[378598245,1754921459480,-1339.57,0.00019726,2]
[378598246,1754921459490,-460.0,0.00019726,2]
[378598247,1754921459499,-886.79,0.00019726,2]
[378598248,1754921459508,-460.0,0.00019726,2]
[378598249,1754921459517,-460.0,0.00019726,2]
[378598250,1754921459526,-460.0,0.00019726,2]
[378598251,1754921459536,-679.89,0.00019726,2]
[378598252,1754921459547,-460.0,0.00019726,2]
[378598253,1754921459556,-460.0,0.00019726,2]
[378598254,1754921459566,-1193.9,0.00019726,2]
[378598255,1754921459575,-1062.11,0.00019726,2]
[378598256,1754921459584,-460.0,0.00019726,2]
[378598257,1754921459594,-460.0,0.00019726,2]
[378598258,1754921459603,-460.0,0.00019726,2]
[378598259,1754921459612,-460.0,0.00019726,2]
[378598260,1754921459621,-3411.63,0.00019726,2]
[378598261,1754921459631,-460.0,0.00019726,2]
[378598262,1754921459640,-460.0,0.00019726,2]
[378598263,1754921459649,-460.0,0.00019726,2]
[378598264,1754921459659,-493.27,0.00019726,2]
[378598265,1754921459668,-460.0,0.00019726,2]
[378598266,1754921459677,-460.0,0.00019726,2]
[378598267,1754921459686,-460.0,0.00019726,2]
[378598268,1754921459698,-460.0,0.00019726,2]
[378598269,1754921459707,-515.99,0.00019726,2]
[378598270,1754921459716,-460.0,0.00019726,2]
[378598271,1754921459726,-460.0,0.00019726,2]
[378598272,1754921459735,-483.16,0.00019726,2]
[378598273,1754921459744,-1201.45,0.00019726,2]
[378598274,1754921459754,-671.07,0.00019726,2]
[378598275,1754921459764,-460.0,0.00019726,2]
[378598276,1754921459780,-460.0,0.00019726,2]
[378598277,1754921459791,-5194.88,0.00019726,2]